[Event "Tech Mahindra GCL Final 2024"]
[Site "London"]
[Date "2024.10.12"]
[Round "1"]
[White "Firouzja, Alireza"]
[Black "Giri, Anish"]
[Result "1-0"]
[ECO "B13"]
[WhiteElo "2767"]
[BlackElo "2728"]
[Annotator "TA"]
[PlyCount "89"]
[EventDate "2024.09.29"]
[EventType "team-tourn"]
[EventCountry "ENG"]
[SourceTitle "playchess.com"]
[Source "ChessBase"]
[SourceQuality "1"]
[WhiteTeam "Triveni Continental Kings"]
[BlackTeam "Alaskan Knights"]
[TimeControl "1200"]

{[%evp 9,89,-1,3,-13,0,-8,12,-15,7,-11,-16,-22,-10,-24,-25,-28,-28,-26,-33,-26,0,-16,-5,-34,-12,-46,0,-14,0,0,14,2,85,83,92,94,89,93,85,85,58,93,97,105,110,110,103,111,116,106,171,178,172,184,163,178,187,175,248,241,312,320,316,318,315,316,342,353,404,427,409,395,395,461,439,433,404,386,677,671,29988,29989]} 1. Nc3 {[%emt 0:00:01]} Nf6 {[%emt 0:00:05]} 2. d4 {[%emt 0:00:04]} d5 {[%emt 0:00:01]} 3. Bf4 {[%emt 0:00:01]} c5 {[%emt 0:00:11]} 4. e3 {[%emt 0:00:01]} cxd4 {[%emt 0:00:20]} 5. exd4 {[%emt 0:00:01]} a6 {[%emt 0:00:03]} 6. Nf3 {[%emt 0:00:02]} Nc6 {[%emt 0:00:02]} 7. Ne5 {[%emt 0:00:01]} e6 {[%emt 0:00:01]} 8. g3 {[%emt 0:00:01] The position is equal.} Bd7 {[%emt 0:00:09]} 9. Bg2 {[%emt 0:00:01]} Nxe5 {[%emt 0:00:02]} 10. dxe5 {[%emt 0:00:02]} Ng8 {[%emt 0:00:01][%cal Bf6g8,Bg8e7,Be7c6][%mdl 32]} 11. h4 {[%emt 0:00:57]} Rc8 {[%emt 0:00:15]} 12. O-O {[%emt 0:00:09]} Ne7 {[%emt 0:00:07]} 13. h5 {[%emt 0:00:03]} h6 {[%emt 0:00:02]} 14. Ne2 {[%emt 0:00:24]} Nc6 {[%emt 0:00:06]} 15. c3 {[%emt 0:00:56]} Be7 {[%emt 0:00:02]} 16. Nc1 {[%emt 0:00:01]} O-O {[%emt 0:00:06]} 17. Nd3 {[%emt 0:00:01]} b5 {[%emt 0:00:20]} (17... Bg5 $15 {should be considered.}) 18. a3 {[%emt 0:00:18]} a5 {[%emt 0:00:51]} 19. Qg4 {[%emt 0:00:41]} Kh8 {[%emt 0:00:03]} 20. Rfe1 {[%emt 0:00:14]} f5 {[%emt 0:01:20]} (20... b4 $11 {remains equal.}) 21. exf6 $16 {[%emt 0:00:20] Black is on the road to losing.} Bxf6 {[%emt 0:00:17][%cal Oe6e5] White must now prevent ...e5!} 22. Bh3 {[%emt 0:03:51] White has more active pieces.} Qe7 {[%emt 0:00:33] Dodges Bd6} 23. Rxe6 {[%emt 0:00:34]} Bxe6 {[%emt 0:00:36]} 24. Qxe6 {[%emt 0:00:00]} Qxe6 {[%emt 0:00:51]} 25. Bxe6 {[%emt 0:00:02]} d4 {[%emt 0:00:41][%cal Od4c3]} 26. Bxc8 {[%emt 0:00:13]} Rxc8 {[%emt 0:00:04]} 27. cxd4 {[%emt 0:00:02]} Nxd4 {[%emt 0:00:02]} 28. Kg2 {[%emt 0:00:08]} Rd8 {[%emt 0:00:31] [#] ...Nb3 is the strong threat.} 29. Ne5 $1 {[%emt 0:01:12]} Bxe5 {[%emt 0:01:11]} (29... Nb3 $16 {is a better defense.} 30. Re1 Kg8) 30. Bxe5 {[%emt 0:00:01][%mdl 4096] Endgame. KRB-KRN} Rd5 {[%emt 0:00:01]} 31. Re1 {[%emt 0:00:24]} Nc6 {[%emt 0:00:08] [#]} 32. Bc7 {[%emt 0:00:01]} Rxh5 {[%emt 0:00:08]} 33. Rc1 {[%emt 0:00:01] Dodges Rc5} Nd4 {[%emt 0:00:23]} (33... Ne7 $142 34. Bxa5 Nd5) 34. Bxa5 $18 {[%emt 0:00:01]} Rf5 {[%emt 0:00:03]} 35. Rc7 {[%emt 0:00:11]} Rd5 {[%emt 0:00:41]} 36. Bc3 {[%emt 0:00:03]} Kg8 {[%emt 0:00:08]} 37. Rb7 {[%emt 0:00:13]} Nf5 {[%emt 0:00:15]} 38. Kf3 {[%emt 0:00:31]} Rc5 {[%emt 0:00:07]} 39. g4 {[%emt 0:01:50]} Nh4+ {[%emt 0:00:01]} 40. Kg3 {[%emt 0:00:00]} g5 {[%emt 0:00:02]} 41. f4 {[%emt 0:00:01][%cal Bf2f4,Bf4f5,Bf5f6][%mdl 32]} Rd5 {[%emt 0:00:50] Prevents Rd7.} 42. f5 {[%emt 0:00:05]} Rd3+ {[%emt 0:00:32]} 43. Kf2 {[%emt 0:00:01]} h5 $2 {[%emt 0:00:27]} (43... Rf3+ 44. Ke2 Rf4) 44. Ke2 {[%emt 0:00:12]} Rd5 {[%emt 0:00:08]} 45. f6 {[%emt 0:00:09] Weighted Error Value: White=0.05 (flawless) /Black=0.47.  Mistake:       	---       	Black=5      Inaccurate:     	White=3     	Black=2      OK:         	White=19    	Black=11     Best:        	White=3     	---        Strong:       	White=1     	---} ({Not} 45. gxh5 Nxf5 46. Kf3 Rd3+ 47. Kg4 Rd5 48. Rb8+ (48. Kxg5 Nd6+ 49. Kg6 Nxb7 $11) 48... Kf7 49. Kxg5 Ng3+ 50. Kg4 Ne4 51. Rb7+ Kg8 $16) 1-0

[Event "Tech Mahindra GCL Final 2024"]
[Site "London"]
[Date "2024.10.12"]
[Round "1"]
[White "Wei, Yi"]
[Black "Abdusattorov, Nodirbek"]
[Result "0-1"]
[ECO "A14"]
[WhiteElo "2763"]
[BlackElo "2783"]
[Annotator "TA"]
[PlyCount "194"]
[EventDate "2024.09.29"]
[EventType "team-tourn"]
[EventCountry "ENG"]
[SourceTitle "playchess.com"]
[Source "ChessBase"]
[SourceQuality "1"]
[WhiteTeam "Triveni Continental Kings"]
[BlackTeam "Alaskan Knights"]
[TimeControl "1200"]

{[%evp 23,194,4,7,0,0,0,0,-12,0,-22,0,0,0,0,44,41,42,43,47,33,43,38,40,41,42,41,61,15,38,0,0,0,0,0,38,34,34,9,37,31,27,22,22,0,41,0,33,0,14,0,0,0,8,-28,-23,-66,8,11,12,6,61,45,89,59,71,60,64,67,67,59,58,56,93,71,72,60,79,0,59,9,52,0,68,0,52,27,52,0,0,-40,-46,-46,-46,-44,-33,-52,-25,-200,-195,-328,-197,-239,-195,-242,-111,-101,-27,-18,-26,-130,-35,-84,-8,-77,0,0,0,0,0,-8,-8,-8,-8,-8,-8,-8,-8,-8,-8,-8,-8,-8,-8,-8,-8,-8,-8,-8,-8,-8,-8,-8,-8,-8,-8,-8,-8,-8,-8,-8,-8,-8,-8,-8,-8,-8,-13,-13,-13,-13,-13,-29977,-29978,-29978,-29979,-29987,-29980,-29985,-29986,-29986,-29987,-29987,-29987]} 1. b3 {[%emt 0:00:02]} Nf6 {[%emt 0:00:05]} 2. Bb2 {[%emt 0:00:01]} d5 {[%emt 0:00:06]} 3. Nf3 {[%emt 0:00:03]} e6 {[%emt 0:00:03]} 4. c4 {[%emt 0:00:10]} b6 {[%emt 0:00:02]} 5. g3 {[%emt 0:00:13]} Bb7 {[%emt 0:00:02]} 6. Bg2 {[%emt 0:00:02]} Nbd7 {[%emt 0:00:03]} 7. O-O {[%emt 0:00:06]} Be7 {[%emt 0:00:03]} 8. e3 {[%emt 0:00:19]} O-O {[%emt 0:00:04]} 9. Qe2 {[%emt 0:00:09]} c5 {[%emt 0:00:22]} 10. Nc3 {[%emt 0:00:10]} Rc8 {[%emt 0:00:13]} 11. Rac1 {[%emt 0:00:24]} Qc7 {[%emt 0:00:06]} 12. Rfd1 {[%emt 0:00:12]} Qb8 {[%emt 0:00:02]} 13. d4 {[%emt 0:00:07]} cxd4 {[%emt 0:00:27]} 14. exd4 {[%emt 0:00:07]} Qa8 {[%emt 0:00:18]} 15. a4 {[%emt 0:01:43][%cal Ba2a4,Ba4a5][%mdl 32] The position is equal.} Rfd8 {[%emt 0:00:59]} 16. a5 {[%emt 0:00:30]} dxc4 {[%emt 0:02:28]} 17. bxc4 {[%emt 0:00:03][%cal Od4d5] Hoping for d5!} Bb4 {[%emt 0:00:39]} 18. axb6 {[%emt 0:00:55]} Bxc3 {[%emt 0:00:01]} 19. Bxc3 {[%emt 0:00:19]} axb6 {[%emt 0:00:00]} 20. Ra1 {[%emt 0:02:16]} Qb8 {[%emt 0:00:01]} 21. Bd2 {[%emt 0:00:11]} Be4 {[%emt 0:00:10]} 22. Bf1 {[%emt 0:01:21]} Qb7 {[%emt 0:00:25]} 23. Ne1 {[%emt 0:00:18][%cal Bf3e1,Be1d3,Bd3b4][%mdl 32]} h6 {[%emt 0:00:55]} 24. f3 {[%emt 0:00:10]} Bc6 {[%emt 0:00:18]} 25. Bg2 {[%emt 0:00:58]} (25. Ra3 $14) 25... Ra8 $11 {[%emt 0:01:08]} 26. Nd3 {[%emt 0:00:19]} Rxa1 {[%emt 0:00:23]} 27. Rxa1 {[%emt 0:00:01]} Ra8 {[%emt 0:00:01]} 28. Rb1 {[%emt 0:00:32]} Qa7 {[%emt 0:00:27]} 29. Nb4 {[%emt 0:00:37]} Bb7 {[%emt 0:00:02]} 30. Bc3 {[%emt 0:00:12]} Rc8 {[%emt 0:00:48]} 31. Ra1 {[%emt 0:00:05]} Qb8 {[%emt 0:00:01]} 32. Rc1 {[%emt 0:00:02]} Qa8 {[%emt 0:00:07]} 33. Ra1 {[%emt 0:00:10]} Qb8 {[%emt 0:00:00]} 34. Rc1 {[%emt 0:00:02]} Qd6 {[%emt 0:00:05]} 35. Bh3 {[%emt 0:00:32]} Ra8 {[%emt 0:00:58]} 36. Kf2 {[%emt 0:00:16]} Ra4 {[%emt 0:00:12]} 37. Rb1 {[%emt 0:00:10]} Qb8 {[%emt 0:00:48]} 38. Qd1 {[%emt 0:00:28]} Ra3 {[%emt 0:00:06]} 39. Rb3 {[%emt 0:00:16]} (39. Qc1 {keeps more tension.} Qa8 40. Ra1 Rxa1 41. Qxa1 Bxf3 42. Qxa8+ Bxa8 43. Ke3) 39... Rxb3 {[%emt 0:00:05]} (39... Bxf3 $1 $15 40. Kxf3 Qa8+ 41. d5 Qa4) 40. Qxb3 {[%emt 0:00:01]} Qa8 {[%emt 0:00:01]} (40... g5 {is interesting.} 41. Qb1 g4 42. Bxg4 Nxg4+ 43. fxg4 Qd6) 41. Bb2 {[%emt 0:00:07]} Qc8 {[%emt 0:00:48]} (41... Qa5 $11) 42. Bf1 {[%emt 0:00:12]} Ne8 {[%emt 0:00:17][%cal Bf6e8,Be8d6,Bd6f5,Bf5e3][%mdl 32]} 43. Be2 {[%emt 0:00:09]} Nd6 {[%emt 0:00:01]} 44. Nc2 {[%emt 0:00:13]} Nf5 {[%emt 0:00:13]} 45. Ne3 {[%emt 0:00:09]} Nxe3 {[%emt 0:00:02]} 46. Qxe3 {[%emt 0:00:02]} Ba6 {[%emt 0:00:07]} 47. Qb3 {[%emt 0:00:03]} Qc6 {[%emt 0:00:14]} 48. Ba3 {[%emt 0:00:17]} Nf6 {[%emt 0:00:24]} 49. Qb4 {[%emt 0:00:03]} Qc8 {[%emt 0:00:02] Inhibits Qf8+.} 50. Qb3 {[%emt 0:00:11]} (50. Qxb6 Bxc4 51. Qc5 Ba6 $11) (50. Qa4 $16) 50... Qd8 {[%emt 0:00:08]} (50... Qc6 $1 $11) 51. Qe3 {[%emt 0:00:06]} (51. Ke3 $14) 51... Qc8 {[%emt 0:00:07]} 52. Qb3 {[%emt 0:00:03]} Qd8 {[%emt 0:00:01]} 53. Qe3 {[%emt 0:00:10]} Qc8 {[%emt 0:00:20]} 54. Qd3 {[%emt 0:00:04]} Qd8 {[%emt 0:00:06]} 55. h4 {[%emt 0:00:05]} ({White should play} 55. Qc3 $14) 55... Qc7 {[%emt 0:00:01]} 56. Bb4 {[%emt 0:00:09]} (56. Bb2 $5) 56... Nh5 {[%emt 0:00:02]} 57. f4 {[%emt 0:00:11]} Nf6 {[%emt 0:00:02]} 58. Ba3 {[%emt 0:00:11]} Bb7 {[%emt 0:00:04]} 59. Ke1 {[%emt 0:00:13]} Qc6 {[%emt 0:00:00]} 60. Kd2 $2 {[%emt 0:00:05]} (60. d5 $1 $11 exd5 61. cxd5 Nxd5 62. Bb2) 60... Qg2 $19 {[%emt 0:00:01]} 61. Kc1 {[%emt 0:00:04]} (61. Qe3 $142) 61... Ne4 {[%emt 0:00:14]} 62. g4 {[%emt 0:00:12]} Qf2 {[%emt 0:00:06] Inhibits Qe3.} 63. f5 {[%emt 0:00:07]} (63. Bf3 {was called for.}) 63... Ng3 {[%emt 0:00:04]} (63... Qxh4 64. fxe6 Qg5+ (64... fxe6 65. Bb4 $17) 65. Kc2 fxe6 66. Bb4) (63... exf5 $19 64. d5 Bc8 (64... Qxh4 $2 65. gxf5 Bc8 66. Qc2 $19) (64... Qf4+ $2 65. Kc2 $19)) 64. Bd1 $17 {[%emt 0:00:05]} Be4 {[%emt 0:00:04]} (64... exf5 $17 {...Qf4+ is the strong threat.} 65. d5 Bc8 (65... fxg4 66. d6 $11)) 65. Qd2 $11 {[%emt 0:00:11] Dodges Qf4} Qf1 {[%emt 0:00:01] Chess con chili.} 66. Kb2 {[%emt 0:00:04]} (66. fxe6 $11 {remains equal.} Qxc4+ 67. Kb2 fxe6 (67... Qxe6 68. Qf4 $14) 68. Qe3) 66... Qxc4 {[%emt 0:00:09]} ({Better is} 66... exf5 $17 67. Bd6 Nh1) 67. Bb3 {[%emt 0:00:01]} (67. fxe6 $15 {deserves consideration.} fxe6 (67... Qxe6 68. Qf4 $14) 68. Qe3) 67... Qb5 {[%emt 0:00:01] Black is much more active.} (67... Nf1 $1 $17 {[%cal Rf1d2]} 68. Qf2 Qb5 69. fxe6 fxe6) 68. fxe6 {[%emt 0:00:05]} (68. Qe3 $11 Nf1 (68... exf5 69. Qxg3 Qe2+ 70. Kc3 $11) 69. Qxe4 Qxb3+ 70. Kxb3 Nd2+ 71. Kb4 Nxe4 72. Kb5) 68... Bd5 {[%emt 0:00:15]} (68... fxe6 $17 {White must now prevent ...Bd5.} 69. Qe3 Nf1 70. Qxe4 Qxb3+ 71. Kxb3 Nd2+ 72. Kb4 Nxe4) 69. exf7+ {[%emt 0:00:01]} Bxf7 {[%emt 0:00:04]} 70. Qb4 {[%emt 0:00:04]} Qe2+ {[%emt 0:00:10]} (70... Qxb4 {simplifies} 71. Bxb4 Bxb3 72. Kxb3 Kf7) 71. Bc2 {[%emt 0:00:08][%csl Ga3][%cal Rb4f8] [#] This pair of bishops is nice.} Bg6 {[%emt 0:00:04]} 72. Qb3+ {[%emt 0:00:01]} Kh7 {[%emt 0:00:01]} 73. h5 {[%emt 0:00:05]} Be4 {[%emt 0:00:02]} 74. d5 {[%emt 0:00:08] Threatens to win with d6.} Nf1 {[%emt 0:00:04] aiming for ...Ne3.} 75. Qa4 {[%emt 0:00:05]} Qxc2+ {[%emt 0:00:12]} 76. Qxc2 {[%emt 0:00:01]} Bxc2 {[%emt 0:00:00]} 77. Kxc2 {[%emt 0:00:03][%mdl 4096] Endgame. Intending d6 and mate. KB-KN} Ne3+ {[%emt 0:00:01]} 78. Kd3 {[%emt 0:00:02]} Nxd5 {[%emt 0:00:01]} 79. Ke4 {[%emt 0:00:05]} Nf6+ {[%emt 0:00:02]} 80. Kf5 {[%emt 0:00:01]} b5 {[%emt 0:00:03]} 81. Bc5 {[%emt 0:00:03]} Nd7 {[%emt 0:00:10]} 82. Bd6 $1 {[%emt 0:00:02]} Nb6 {[%emt 0:00:05]} 83. g5 {[%emt 0:00:01]} hxg5 {[%emt 0:00:04]} 84. Kxg5 {[%emt 0:00:02]} Nd5 {[%emt 0:00:01] And now ...b4 would win.} 85. Kf5 {[%emt 0:00:02]} Nf6 {[%emt 0:00:17]} 86. Ke5 {[%emt 0:00:06]} Nxh5 {[%emt 0:00:06]} 87. Kd4 {[%emt 0:00:01]} Kg6 {[%emt 0:00:02]} 88. Bf8 {[%emt 0:00:03]} Nf4 {[%emt 0:00:10]} 89. Bd6 {[%emt 0:00:02]} Kf5 {[%emt 0:00:02]} 90. Kc5 {[%emt 0:00:01]} g5 {[%emt 0:00:00]} 91. Kxb5 {[%emt 0:00:01]} Ke4 {[%emt 0:00:02] ( -> ...g4)} 92. Kc6 $2 {[%emt 0:00:02][%mdl 8192] [#]} (92. Kc4 $11) 92... g4 {[%emt 0:00:01] Black mates.} 93. Bc5 {[%emt 0:00:03]} g3 {[%emt 0:00:01]} 94. Kd6 {[%emt 0:00:01]} Nd3 {[%emt 0:00:01]} 95. Bg1 {[%emt 0:00:07]} Nf2 {[%emt 0:00:02]} 96. Ke6 {[%emt 0:00:02]} Kf3 {[%emt 0:00:01]} 97. Kf5 {[%emt 0:00:02]} Kg2 {[%emt 0:00:01] Weighted Error Value: White=0.25 (precise) /Black=0.13 (very precise) .  Loses game:     	White=2     	---        Mistake:       	White=9     	Black=8      Inaccurate:     	White=7     	Black=9      OK:         	White=25    	Black=34     Best:        	White=4     	Black=3      Strong:       	White=1     	---} 0-1

[Event "Tech Mahindra GCL Final 2024"]
[Site "London"]
[Date "2024.10.12"]
[Round "1"]
[White "Radjabov, Teimour"]
[Black "Mamedyarov, Shakhriyar"]
[Result "1/2-1/2"]
[ECO "D37"]
[WhiteElo "2700"]
[BlackElo "2733"]
[Annotator "TA"]
[PlyCount "61"]
[EventDate "2024.09.29"]
[EventType "team-tourn"]
[EventCountry "ENG"]
[SourceTitle "playchess.com"]
[Source "ChessBase"]
[SourceQuality "1"]
[WhiteTeam "Triveni Continental Kings"]
[BlackTeam "Alaskan Knights"]
[TimeControl "1200"]

{[%evp 13,61,-7,-12,-14,-6,-24,0,-4,0,-18,0,0,0,0,0,0,0,0,10,0,8,8,5,5,8,6,0,0,0,0,0,0,0,0,0,0,0,0,0,0,0,0,0,0,0,0,0,0,0,0]} 1. d4 {[%emt 0:00:02]} d5 {[%emt 0:00:01]} 2. c4 {[%emt 0:00:01]} e6 {[%emt 0:00:01]} 3. Nf3 {[%emt 0:00:11]} Nf6 {[%emt 0:00:03]} 4. Nc3 {[%emt 0:00:02]} Be7 {[%emt 0:00:01]} 5. Bf4 {[%emt 0:00:12]} O-O {[%emt 0:00:07]} 6. e3 {[%emt 0:00:02]} c5 {[%emt 0:00:01]} 7. cxd5 {[%emt 0:00:21]} Nxd5 {[%emt 0:00:33]} 8. Nxd5 {[%emt 0:00:25]} Qxd5 {[%emt 0:00:08]} 9. dxc5 {[%emt 0:00:12]} Qxc5 {[%emt 0:00:13] White should prevent ...Qa5+.} 10. a3 {[%emt 0:00:45] The position is equal.} Rd8 {[%emt 0:01:07]} 11. Qc1 {[%emt 0:00:11]} Qxc1+ {[%emt 0:01:08]} 12. Rxc1 {[%emt 0:00:01]} Nc6 {[%emt 0:00:01]} 13. Be2 {[%emt 0:02:27]} Bf6 {[%emt 0:00:17]} 14. Bg5 {[%emt 0:01:04]} Bxg5 {[%emt 0:02:07]} 15. Nxg5 {[%emt 0:00:02]} Bd7 {[%emt 0:00:00]} 16. O-O {[%emt 0:00:48]} Be8 {[%emt 0:00:19]} 17. Rfd1 {[%emt 0:00:23] Repels Rd2} Rxd1+ {[%emt 0:00:17]} 18. Rxd1 {[%emt 0:00:01]} Rd8 {[%emt 0:00:06]} 19. Rxd8 {[%emt 0:00:19]} Nxd8 $11 {[%emt 0:00:02][%mdl 4096] Endgame. KBN-KBN} 20. Kf1 {[%emt 0:00:36]} f6 {[%emt 0:00:14]} 21. Ne4 {[%emt 0:00:10]} Kf8 {[%emt 0:00:03]} 22. Nc3 {[%emt 0:00:26]} Ke7 {[%emt 0:00:09]} 23. Ke1 {[%emt 0:00:24]} Nf7 {[%emt 0:00:25]} 24. Kd2 {[%emt 0:00:07]} Nd6 {[%emt 0:00:06]} 25. Bd3 {[%emt 0:00:12]} h5 {[%emt 0:00:07]} 26. Ne4 {[%emt 0:00:13]} h4 {[%emt 0:00:31]} 27. Nxd6 {[%emt 0:00:10]} Kxd6 {[%emt 0:00:01]} 28. g3 {[%emt 0:00:02]} hxg3 {[%emt 0:00:02]} 29. hxg3 {[%emt 0:00:02]} b6 {[%emt 0:00:02]} 30. Kc3 {[%emt 0:00:11]} g5 {[%emt 0:00:01]} 31. f4 {[%emt 0:00:09] An interesting draw.   Weighted Error Value: White=0.01 (flawless) /Black=0.02 (flawless) .  OK:         	White=10    	Black=10     Best:        	White=1     	---} 1/2-1/2

[Event "Tech Mahindra GCL Final 2024"]
[Site "London"]
[Date "2024.10.12"]
[Round "1"]
[White "Sindarov, Javokhir"]
[Black "Nihal Sarin"]
[Result "1/2-1/2"]
[ECO "B11"]
[WhiteElo "2668"]
[BlackElo "2668"]
[Annotator "TA"]
[PlyCount "125"]
[EventDate "2024.09.29"]
[EventType "team-tourn"]
[EventCountry "ENG"]
[SourceTitle "playchess.com"]
[Source "ChessBase"]
[SourceQuality "1"]
[WhiteTeam "Triveni Continental Kings"]
[BlackTeam "Alaskan Knights"]
[TimeControl "1200"]

{[%evp 34,125,18,0,0,0,0,0,0,0,0,0,0,0,20,11,18,0,0,0,0,-8,-10,-18,0,0,0,-14,-8,-18,-20,-18,-18,-53,-30,-22,0,0,0,-7,0,-34,-34,-70,-43,-39,-27,-27,-27,-27,-27,-14,-12,-27,-2,-2,-8,-16,-16,-16,-2,-2,0,0,0,-266,0,0,0,0,0,0,0,0,0,0,0,0,0,0,0,0,0,0,0,0,0,0,0,0,0,0,0,0]} 1. e4 {[%emt 0:00:02]} c6 {[%emt 0:00:04]} 2. Nf3 {[%emt 0:00:02]} d5 {[%emt 0:00:01]} 3. Nc3 {[%emt 0:00:01]} Bg4 {[%emt 0:00:02]} 4. h3 {[%emt 0:00:03]} Bxf3 {[%emt 0:00:02]} 5. Qxf3 {[%emt 0:00:01]} e6 {[%emt 0:00:01]} 6. Be2 {[%emt 0:00:07]} Bc5 {[%emt 0:00:02] B11: Caro-Kann: Two Knights Variation.} 7. Qg3 {[%emt 0:01:01]} Bd4 {[%emt 0:00:02]} 8. exd5 {[%emt 0:00:06]} exd5 {[%emt 0:00:02]} 9. O-O {[%emt 0:00:16]} Nd7 {[%emt 0:00:05]} 10. Bd1 {[%emt 0:00:12]} Ne7 {[%emt 0:00:02]} 11. Ne2 {[%emt 0:01:13]} Be5 {[%emt 0:00:03]} 12. Qf3 {[%emt 0:00:00]} d4 {[%emt 0:00:22]} 13. c3 {[%emt 0:00:01]} Nc5 {[%emt 0:00:01]} 14. Re1 {[%emt 0:00:03]} Ne6 $146 {[%emt 0:00:02]} ({Predecessor:} 14... Qd6 15. d3 Ne6 16. cxd4 Bxd4 17. Nxd4 Qxd4 18. Bb3 O-O 19. Re4 Qd7 20. Bxe6 fxe6 {1-0 Sindarov,J (2677)-Ponomariov,R (2654) Olympiad-45 Budapest 2024 (7.3)}) 15. Bb3 {[%emt 0:00:39]} O-O {[%emt 0:00:04]} 16. d3 {[%emt 0:00:04]} Ng6 {[%emt 0:00:10]} 17. Bd2 {[%emt 0:00:55]} Nc5 {[%emt 0:00:02]} 18. cxd4 {[%emt 0:00:52]} Nxb3 {[%emt 0:00:26]} 19. axb3 {[%emt 0:00:00]} Bxd4 {[%emt 0:00:03]} 20. Nxd4 {[%emt 0:00:04]} Qxd4 {[%emt 0:00:02]} 21. Bc3 {[%emt 0:00:01]} Qd7 {[%emt 0:00:07]} 22. Ra4 {[%emt 0:00:38]} f6 {[%emt 0:00:39]} 23. h4 {[%emt 0:01:13]} Rfe8 {[%emt 0:02:01]} 24. Rxe8+ {[%emt 0:00:34]} Rxe8 {[%emt 0:00:02]} 25. h5 {[%emt 0:00:06]} Ne5 {[%emt 0:00:03]} 26. Bxe5 {[%emt 0:00:15]} Rxe5 {[%emt 0:00:02]} 27. Rxa7 {[%emt 0:00:10]} h6 {[%emt 0:00:14]} 28. b4 {[%emt 0:03:05]} Kh7 {[%emt 0:00:59]} 29. Ra5 {[%emt 0:00:47]} b5 {[%emt 0:00:29]} 30. Ra1 {[%emt 0:00:49]} Qd4 {[%emt 0:01:34]} 31. Rb1 {[%emt 0:00:52]} Qxb4 {[%emt 0:03:33]} 32. Qxc6 {[%emt 0:00:01]} Rxh5 {[%emt 0:00:02]} 33. g3 {[%emt 0:01:41]} Rc5 {[%emt 0:01:39]} 34. Qf3 {[%emt 0:00:13]} Re5 {[%emt 0:00:44]} 35. Kg2 {[%emt 0:00:17]} Qd4 {[%emt 0:00:08]} 36. Rd1 {[%emt 0:00:19]} h5 {[%emt 0:01:11]} (36... Rd5 {simplifies} 37. Qe3 Rd8 38. Qxd4 Rxd4 39. Kf3 Rb4) 37. Rh1 {[%emt 0:00:33]} Kg6 {[%emt 0:00:34]} 38. b3 {[%emt 0:00:33]} Rf5 {[%emt 0:00:38]} 39. Qe2 $1 {[%emt 0:00:01]} Qd5+ {[%emt 0:00:29]} 40. Qe4 {[%emt 0:00:01]} Qxe4+ {[%emt 0:00:01]} 41. dxe4 {[%emt 0:00:01]} Rc5 {[%emt 0:00:01]} 42. Re1 {[%emt 0:00:07]} Rc3 {[%emt 0:00:17]} 43. e5 {[%emt 0:00:01]} Kf7 {[%emt 0:00:12]} (43... Rxb3 $2 {too greedy.} 44. e6 Ra3 45. e7 $18) 44. exf6 {[%emt 0:00:13]} Kxf6 {[%emt 0:00:01]} 45. Rd1 {[%emt 0:00:01]} Rxb3 {[%emt 0:00:09]} 46. Rd6+ {[%emt 0:00:01]} Ke7 {[%emt 0:00:11]} 47. Rb6 {[%emt 0:00:05]} b4 {[%emt 0:00:14]} 48. Kh3 {[%emt 0:00:07]} g5 {[%emt 0:00:05]} 49. Rb5 $2 {[%emt 0:00:12][%mdl 8192]} (49. Rg6 $11 {and White has nothing to worry.}) 49... h4 $2 {[%emt 0:00:38]} (49... Kf6 $19 {Threatens to win with ...Rb1.} 50. Kg2 Rb1) 50. Rxg5 $11 {[%emt 0:00:16]} hxg3 {[%emt 0:00:02]} 51. fxg3 {[%emt 0:00:01]} Rd3 {[%emt 0:00:01]} 52. Rb5 {[%emt 0:00:01]} b3 {[%emt 0:00:00]} 53. Kh4 {[%emt 0:00:12]} Kd6 {[%emt 0:00:02]} 54. g4 {[%emt 0:00:01]} Kc6 {[%emt 0:00:00]} 55. Rb8 {[%emt 0:00:01]} Kc5 {[%emt 0:00:02]} 56. g5 {[%emt 0:00:09]} Rd4+ {[%emt 0:00:12]} 57. Kh5 {[%emt 0:00:01]} Rb4 {[%emt 0:00:01]} 58. Rxb4 {[%emt 0:00:01]} Kxb4 {[%emt 0:00:01]} 59. g6 {[%emt 0:00:01]} b2 {[%emt 0:00:01]} 60. g7 {[%emt 0:00:01]} b1=Q {[%emt 0:00:03]} 61. g8=Q Qf5+ {[%emt 0:00:01]} 62. Qg5 {[%emt 0:00:01]} Qxg5+ {[%emt 0:00:01]} 63. Kxg5 {[%emt 0:00:02]} 1/2-1/2